fUSD/lending_fUSD_20250109
["ID","MTS","AMOUNT","RATE_DAILY","PERIOD"]
[348219375,1736398063801,-500.0,9.899e-05,2]
[348219376,1736398063827,-500.0,9.899e-05,2]
[348219377,1736398063853,-502.70718081,9.899e-05,2]
[348219378,1736398063877,-500.0,9.899e-05,2]
[348219379,1736398063901,-500.0,9.899e-05,2]
[348219380,1736398063926,-657.5,9.899e-05,2]
[348219381,1736398063950,-502.18103202,9.899e-05,2]
[348219382,1736398063974,-502.12628691,9.899e-05,2]
[348219383,1736398064002,-500.0,9.899e-05,2]
[348219384,1736398064027,-500.0,9.899e-05,2]
[348219385,1736398064051,-500.0,9.899e-05,2]
[348219386,1736398064075,-385.05634746,9.899e-05,2]
[348219387,1736398064099,-501.60384002,9.899e-05,2]
[348219388,1736398064124,-500.0,9.899e-05,2]
[348219389,1736398064150,-500.0,9.899e-05,2]
[348219390,1736398064174,-507.89214433,9.899e-05,2]
[348219391,1736398064198,-500.0,9.899e-05,2]
[348219392,1736398064223,-500.0,9.899e-05,2]
[348219393,1736398064248,-500.0,9.899e-05,2]
[348219394,1736398064272,-505.24493665,9.899e-05,2]
[348219395,1736398064296,-500.0,9.899e-05,2]
[348219396,1736398064321,-624.19126082,9.899e-05,2]
[348219397,1736398064347,-500.0,9.899e-05,2]
[348219398,1736398064371,-584.10130925,9.899e-05,2]
[348219399,1736398064395,-500.4618116,9.899e-05,2]
[348219400,1736398064420,-500.0,9.899e-05,2]
[348219401,1736398064448,-572.77003611,9.899e-05,2]
[348219402,1736398064473,-500.0,9.899e-05,2]
[348219403,1736398064499,-1649.36,9.899e-05,2]
[348219404,1736398064524,-535.6774951,9.899e-05,2]
[348219405,1736398064549,-500.0,9.899e-05,2]
[348219406,1736398064573,-500.0,9.899e-05,2]
[348219407,1736398064597,-500.0,9.899e-05,2]
[348219408,1736398064622,-504.84551596,9.899e-05,2]
[348219409,1736398064646,-500.0,9.899e-05,2]
[348219410,1736398064674,-500.0,9.899e-05,2]
[348219411,1736398064699,-500.0,9.899e-05,2]
[348219412,1736398064723,-500.0,9.899e-05,2]
[348219413,1736398064924,-402.86909093,9.899e-05,2]
[348219414,1736398064949,-500.0,9.899e-05,2]
[348219415,1736398064973,-500.0,9.899e-05,2]
[348219416,1736398064999,-1567.76,9.899e-05,2]
[348219417,1736398065029,-500.0,9.899e-05,2]
[348219418,1736398065054,-500.0,9.899e-05,2]
[348219419,1736398065077,-605.59547855,9.899e-05,2]
[348219420,1736398065103,-1328.43,9.899e-05,2]
[348219421,1736398065129,-500.0,9.899e-05,2]
[348219422,1736398065155,-500.0,9.899e-05,2]
[348219423,1736398065191,-500.0,9.899e-05,2]
[348219424,1736398065220,-500.0,9.899e-05,2]
[348219425,1736398065247,-1401.65,9.899e-05,2]
[348219426,1736398065272,-500.0,9.899e-05,2]
[348219427,1736398065299,-14898.2241,9.9e-05,2]
[348219428,1736398065325,-1232.5599839,9.9e-05,2]
[348219429,1736398065350,-5000.0,9.9e-05,2]
[348219430,1736398065376,-150.0,9.97e-05,2]
[348219431,1736398065402,-508877.64459981,9.97e-05,2]
[348219432,1736398065428,-508877.64459981,9.972e-05,2]
[348219433,1736398065456,-65599.35376467,9.976e-05,2]
[348219434,1736398065483,-508877.64459981,9.982e-05,2]
[348219435,1736398065510,-508877.64459981,9.984e-05,2]
[348219436,1736398065537,-256.98084534,9.99e-05,2]
[348219437,1736398065564,-65599.35376467,9.992e-05,2]
[348219438,1736398065591,-65599.35376467,9.994e-05,2]
[348219439,1736398065617,-65599.35376467,9.994e-05,2]
[348219440,1736398065642,-65599.35376467,9.994e-05,2]
[348219441,1736398065668,-508877.64459981,9.994e-05,2]
[348219442,1736398065694,-65599.35376467,9.997e-05,2]
[348219443,1736398065720,-508877.64459981,9.997e-05,2]
[348219444,1736398065748,-723.17,9.998e-05,2]
[348219445,1736398065779,-780.0,9.998e-05,2]
[348219446,1736398065807,-2097.59,9.998e-05,2]
[348219447,1736398065832,-500.0,9.998e-05,2]
[348219448,1736398065858,-500.0,9.998e-05,2]
[348219449,1736398065886,-1182.84,9.998e-05,2]
[348219450,1736398065912,-500.0,9.998e-05,2]
[348219451,1736398065939,-587.07,9.998e-05,2]
[348219452,1736398065966,-587.07,9.998e-05,2]
[348219453,1736398065994,-500.0,9.998e-05,2]
[348219454,1736398066022,-500.0,9.998e-05,2]
[348219455,1736398066049,-500.0,9.998e-05,2]
[348219456,1736398066074,-500.0,9.998e-05,2]
[348219457,1736398066100,-500.0,9.998e-05,2]
[348219458,1736398066127,-1000.0,9.998e-05,2]
[348219459,1736398066157,-500.0,9.998e-05,2]
[348219460,1736398066183,-500.0,9.998e-05,2]
[348219461,1736398066208,-500.92058106,9.998e-05,2]
[348219462,1736398066235,-894.46,9.998e-05,2]
[348219463,1736398066261,-27374.52338147,9.999e-05,2]
[348219464,1736398066286,-502.69639179,9.999e-05,2]
[348219465,1736398066311,-500.0,9.999e-05,2]
[348219466,1736398066336,-502.16308824,9.999e-05,2]
[348219467,1736398066361,-1274.5058648,9.999e-05,3]
[348219468,1736398066385,-1274.5058648,9.999e-05,3]
[348219469,1736398066410,-500.0,9.999e-05,2]
[348219470,1736398066437,-500.0,9.999e-05,2]
[348219471,1736398066464,-500.0,9.999e-05,2]
[348219472,1736398066491,-546.05,9.999e-05,2]
[348219473,1736398066516,-500.0,9.999e-05,2]
[348219474,1736398066544,-547.52,9.999e-05,2]
[348219475,1736398066569,-547.52,9.999e-05,2]
[348219476,1736398066593,-547.52,9.999e-05,2]
[348219477,1736398066619,-547.52,9.999e-05,2]
[348219478,1736398066642,-547.52,9.999e-05,2]
[348219479,1736398066667,-547.52,9.999e-05,2]
[348219480,1736398066693,-547.52,9.999e-05,2]
[348219481,1736398066717,-547.52,9.999e-05,2]
[348219482,1736398066741,-547.52,9.999e-05,2]
[348219483,1736398066770,-547.52,9.999e-05,2]
[348219484,1736398066795,-547.52,9.999e-05,2]
[348219485,1736398066820,-547.52,9.999e-05,2]
[348219486,1736398066845,-547.52,9.999e-05,2]
[348219487,1736398066869,-547.52,9.999e-05,2]
[348219488,1736398066894,-547.52,9.999e-05,2]
[348219489,1736398066919,-547.52,9.999e-05,2]
[348219490,1736398066946,-547.52,9.999e-05,2]
[348219491,1736398066971,-547.52,9.999e-05,2]
[348219492,1736398066996,-547.52,9.999e-05,2]
[348219493,1736398067023,-547.52,9.999e-05,2]
[348219494,1736398067047,-547.52,9.999e-05,2]
[348219495,1736398067071,-547.52,9.999e-05,2]
[348219496,1736398067096,-547.62,9.999e-05,2]
[348219497,1736398067121,-500.0,9.999e-05,2]
[348219498,1736398067147,-500.0,9.999e-05,2]
[348219499,1736398067172,-557.28,9.999e-05,2]
[348219500,1736398067197,-500.0,9.999e-05,2]
[348219501,1736398067222,-500.0,9.999e-05,2]
[348219502,1736398067247,-500.0,9.999e-05,2]
[348219503,1736398067273,-336.87,9.999e-05,2]
[348219504,1736398067298,-818.73,9.999e-05,2]
[348219505,1736398067324,-500.0,9.999e-05,2]
[348219506,1736398067357,-500.0,9.999e-05,2]
[348219507,1736398067387,-151.958366,9.999e-05,2]
[348219508,1736398067412,-156.51609,9.999e-05,2]
[348219509,1736398067437,-156.638758,9.999e-05,2]
[348219510,1736398067465,-157.692616,9.999e-05,2]
[348219511,1736398067491,-500.0,9.999e-05,2]
[348219512,1736398067515,-500.0,9.999e-05,2]
[348219513,1736398067542,-500.0,9.999e-05,2]
[348219514,1736398067567,-616.38132078,9.999e-05,2]
[348219515,1736398067595,-1349.54,9.999e-05,2]
[348219516,1736398067619,-500.0,9.999e-05,2]
[348219517,1736398067645,-541.62784974,9.999e-05,2]
[348219518,1736398067671,-669.521111,9.999e-05,2]
[348219519,1736398067697,-500.0,9.999e-05,2]
[348219520,1736398067723,-500.0,9.999e-05,2]
[348219521,1736398067748,-500.0,9.999e-05,2]
[348219522,1736398067776,-500.0,9.999e-05,2]
[348219523,1736398067802,-500.0,9.999e-05,2]
[348219524,1736398067831,-1493.48,9.999e-05,2]
[348219525,1736398067855,-500.0,9.999e-05,2]
[348219526,1736398067880,-500.0,9.999e-05,2]
[348219527,1736398067904,-500.0,9.999e-05,2]
[348219528,1736398067930,-505.99,9.999e-05,2]
[348219529,1736398067959,-500.0,9.999e-05,2]
[348219530,1736398068191,-500.0,9.999e-05,2]
[348219531,1736398068220,-500.0,9.999e-05,2]
[348219532,1736398068245,-500.0,9.999e-05,2]
[348219533,1736398068270,-500.0,9.999e-05,2]
[348219534,1736398068295,-500.0,9.999e-05,2]
[348219535,1736398068320,-500.0,9.999e-05,2]
[348219536,1736398068345,-500.0,9.999e-05,2]
[348219537,1736398068369,-500.0,9.999e-05,2]
[348219538,1736398068394,-500.0,9.999e-05,2]
[348219539,1736398068418,-500.0,9.999e-05,2]
[348219540,1736398068445,-794.26,9.999e-05,2]
[348219541,1736398068471,-500.0,9.999e-05,2]
[348219542,1736398068497,-686.67,9.999e-05,2]
[348219543,1736398068522,-500.0,9.999e-05,2]
[348219544,1736398068547,-1234.96,9.999e-05,2]
[348219545,1736398068571,-891.63,9.999e-05,2]
[348219546,1736398068598,-508.96,9.999e-05,2]
[348219547,1736398068622,-869.64,9.999e-05,2]
[348219548,1736398068646,-951.82,9.999e-05,2]
[348219549,1736398068672,-176.829489,9.999e-05,2]
[348219550,1736398068698,-119143.89178917,0.0001,2]
[348219551,1736398101015,-300.0,9.798e-05,2]
[348219552,1736398101041,-18394.7902,9.799e-05,2]
[348219553,1736398101069,-150.0,9.897e-05,2]
[348219554,1736398101096,-500.0,9.898e-05,2]
[348219555,1736398101121,-500.38230689,9.898e-05,2]
[348219556,1736398101146,-500.0,9.898e-05,2]
[348219557,1736398101170,-480.38089633,9.898e-05,2]
[348219558,1736398101196,-500.0,9.898e-05,2]
[348219559,1736398101220,-500.0,9.898e-05,2]
[348219560,1736398101248,-500.0,9.898e-05,2]
[348219561,1736398101273,-500.0,9.898e-05,2]
[348219562,1736398101299,-500.0,9.898e-05,2]
[348219563,1736398101324,-468.53758332,9.898e-05,2]
[348219564,1736398101350,-500.0,9.898e-05,2]
[348219565,1736398101375,-500.0,9.898e-05,2]
[348219566,1736398101400,-500.0,9.898e-05,2]
[348219567,1736398101426,-500.0,9.898e-05,2]
[348219568,1736398101453,-501.62920274,9.898e-05,2]
[348219569,1736398101481,-500.0,9.898e-05,2]
[348219570,1736398101507,-500.0,9.898e-05,2]
[348219571,1736398101533,-500.0,9.898e-05,2]
[348219572,1736398101559,-500.0,9.898e-05,2]
[348219573,1736398101587,-500.0,9.898e-05,2]
[348219574,1736398101613,-500.0,9.898e-05,2]
[348219575,1736398101639,-500.0,9.898e-05,2]
[348219576,1736398101666,-500.0,9.898e-05,2]
[348219577,1736398101691,-500.49392069,9.898e-05,2]
[348219578,1736398101717,-500.0,9.898e-05,2]
[348219579,1736398101744,-500.0,9.898e-05,2]
[348219580,1736398101769,-500.0,9.898e-05,2]
[348219581,1736398101794,-500.0,9.898e-05,2]
[348219582,1736398101818,-500.0,9.898e-05,2]
[348219583,1736398101843,-500.0,9.898e-05,2]
[348219584,1736398101867,-500.0,9.898e-05,2]
[348219585,1736398101893,-500.0,9.898e-05,2]
[348219586,1736398101918,-500.0,9.898e-05,2]
[348219587,1736398101943,-500.0,9.898e-05,2]
[348219588,1736398101968,-500.86972158,9.898e-05,2]
[348219589,1736398101998,-500.0,9.898e-05,2]
[348219590,1736398102023,-500.0,9.898e-05,2]
[348219591,1736398102048,-500.0,9.898e-05,2]
[348219592,1736398102073,-500.0,9.898e-05,2]
[348219593,1736398102098,-500.0,9.898e-05,2]
[348219594,1736398102124,-500.57665671,9.898e-05,2]
[348219595,1736398102149,-2330.18,9.898e-05,2]
[348219596,1736398102174,-500.0,9.898e-05,2]
[348219597,1736398102199,-500.0,9.898e-05,2]
[348219598,1736398102226,-500.0,9.898e-05,2]
[348219599,1736398102252,-500.0,9.898e-05,2]
[348219600,1736398102278,-500.0,9.898e-05,2]
[348219601,1736398102304,-500.0,9.898e-05,2]
[348219602,1736398102333,-500.0,9.898e-05,2]
[348219603,1736398102358,-500.0,9.898e-05,2]
[348219604,1736398102385,-500.0,9.898e-05,2]
[348219605,1736398102410,-500.0,9.898e-05,2]
[348219606,1736398102436,-500.0,9.898e-05,2]
[348219607,1736398102465,-500.0,9.898e-05,2]
[348219608,1736398102491,-500.0,9.898e-05,2]
[348219609,1736398102517,-500.0,9.898e-05,2]
[348219610,1736398102542,-500.0,9.898e-05,2]
[348219611,1736398102567,-500.0,9.898e-05,2]
[348219612,1736398102591,-500.3295197,9.898e-05,2]
[348219613,1736398102615,-500.0,9.898e-05,2]
[348219614,1736398102640,-500.0,9.898e-05,2]
[348219615,1736398102664,-500.0,9.898e-05,2]
[348219616,1736398102688,-500.0,9.898e-05,2]
[348219617,1736398102713,-500.0,9.898e-05,2]
[348219618,1736398102739,-500.67717121,9.898e-05,2]
[348219619,1736398102764,-500.0,9.898e-05,2]
[348219620,1736398102788,-500.34146033,9.898e-05,2]
[348219621,1736398102812,-500.70188659,9.898e-05,2]
[348219622,1736398102837,-500.0,9.899e-05,2]
[348219623,1736398102862,-500.0,9.899e-05,2]
[348219624,1736398102887,-500.0,9.899e-05,2]
[348219625,1736398102912,-500.0,9.899e-05,2]
[348219626,1736398102937,-500.0,9.899e-05,2]
[348219627,1736398102961,-576.03671203,9.899e-05,2]
[348219628,1736398102990,-500.0,9.899e-05,2]
[348219629,1736398103015,-500.0,9.899e-05,2]
[348219630,1736398103054,-500.0,9.899e-05,2]
[348219631,1736398103080,-500.0,9.899e-05,2]
[348219632,1736398103105,-500.0,9.899e-05,2]
[348219633,1736398103129,-500.0,9.899e-05,2]
[348219634,1736398103155,-500.0,9.899e-05,2]
[348219635,1736398103180,-500.0,9.899e-05,2]
[348219636,1736398103205,-500.0,9.899e-05,2]
[348219637,1736398103233,-500.0,9.899e-05,2]
[348219638,1736398103258,-500.0,9.899e-05,2]
[348219639,1736398103282,-500.0,9.899e-05,2]
[348219640,1736398103545,-500.0,9.899e-05,2]
[348219641,1736398103572,-500.0,9.899e-05,2]
[348219642,1736398103597,-500.0,9.899e-05,2]
[348219643,1736398103623,-500.0,9.899e-05,2]
[348219644,1736398103647,-500.0,9.899e-05,2]
[348219645,1736398103673,-336.65194824,9.899e-05,2]
[348219646,1736398103696,-500.0,9.899e-05,2]
[348219647,1736398103720,-500.0,9.899e-05,2]
[348219648,1736398103746,-500.0,9.899e-05,2]
[348219649,1736398103770,-18909.42047693,9.971e-05,2]
[348219650,1736398103793,-154.00306658,9.973e-05,2]
[348219651,1736398103817,-256.98084534,9.973e-05,2]
[348219652,1736398103842,-29930.36846649,9.974e-05,2]
[348219653,1736398103866,-256.98084534,9.974e-05,2]
[348219654,1736398103894,-12440.36460153,9.976e-05,2]
[348219655,1736398103919,-553.98699165,9.978e-05,2]
[348219656,1736398103944,-256.98084534,9.978e-05,2]
[348219657,1736398103969,-553.98699165,9.98e-05,2]
[348219658,1736398103997,-12440.36460153,9.981e-05,2]
[348219659,1736398104023,-18909.42047693,9.981e-05,2]
[348219660,1736398104048,-12440.36460153,9.983e-05,2]
[348219661,1736398104073,-18909.42047693,9.983e-05,2]
[348219662,1736398104098,-29930.36846649,9.983e-05,2]
[348219663,1736398104123,-18909.42047693,9.984e-05,2]
[348219664,1736398104148,-553.98699165,9.985e-05,2]
[348219665,1736398104173,-18909.42047693,9.985e-05,2]
[348219666,1736398104198,-12440.36460153,9.986e-05,2]
[348219667,1736398104222,-29930.36846649,9.987e-05,2]
[348219668,1736398104250,-29930.36846649,9.987e-05,2]
[348219669,1736398104280,-553.98699165,9.988e-05,2]
[348219670,1736398104308,-12440.36460153,9.988e-05,2]
[348219671,1736398104334,-553.98699165,9.989e-05,2]
[348219672,1736398104359,-256.98084534,9.991e-05,2]
[348219673,1736398104384,-553.98699165,9.994e-05,2]
[348219674,1736398104410,-12440.36460153,9.994e-05,2]
[348219675,1736398104435,-18909.42047693,9.997e-05,2]
[348219676,1736398104463,-256.98084534,9.998e-05,2]
[348219677,1736398104491,-29930.36846649,9.998e-05,2]
[348219678,1736398104517,-500.0,9.999e-05,2]
[348219679,1736398104545,-500.0,9.999e-05,2]
[348219680,1736398104570,-500.0,9.999e-05,2]
[348219681,1736398104596,-500.0,9.999e-05,2]
[348219682,1736398104622,-192.021761,9.999e-05,2]
[348219683,1736398104647,-500.0,9.999e-05,2]
[348219684,1736398104672,-834.59,9.999e-05,2]
[348219685,1736398104697,-500.0,9.999e-05,2]
[348219686,1736398104722,-500.0,9.999e-05,2]
[348219687,1736398104748,-982.97,9.999e-05,2]
[348219688,1736398104774,-29930.36846649,0.0001,2]
[348219689,1736398104800,-54004.08853976,0.0001,2]
[348219695,1736398180389,1050.45,8.219e-05,2]
[348220109,1736398242811,-525.09,9.331e-05,2]
[348220110,1736398242821,-250.0,9.331e-05,2]
[348220111,1736398242830,-300.0,9.798e-05,2]
[348220112,1736398242840,-5000.0,9.799e-05,2]
[348220113,1736398242852,-500.0,9.799e-05,2]
[348220114,1736398242862,-500.0,9.898e-05,2]
[348220115,1736398242871,-500.0,9.898e-05,2]
[348220116,1736398242881,-500.0,9.898e-05,2]
[348220117,1736398242890,-500.0,9.898e-05,2]
[348220118,1736398242899,-500.0,9.898e-05,2]
[348220119,1736398242909,-500.0,9.898e-05,2]
[348220120,1736398242919,-500.0,9.898e-05,2]
[348220121,1736398242928,-500.0,9.898e-05,2]
[348220122,1736398242937,-500.0,9.898e-05,2]
[348220123,1736398242947,-500.0,9.898e-05,2]
[348220124,1736398242957,-500.0,9.898e-05,2]
[348220125,1736398242967,-500.0,9.898e-05,2]
[348220126,1736398242977,-503.3508729,9.898e-05,2]
[348220127,1736398242989,-500.0,9.898e-05,2]
[348220128,1736398243000,-500.0,9.898e-05,2]
[348220129,1736398243010,-500.0,9.898e-05,2]
[348220130,1736398243022,-500.0,9.898e-05,2]
[348220131,1736398243031,-500.0,9.898e-05,2]
[348220132,1736398243043,-500.0,9.898e-05,2]
[348220133,1736398243053,-250.59431016,9.898e-05,2]
[348220134,1736398243063,-500.0,9.898e-05,2]
[348220135,1736398243072,-1068.42,9.898e-05,2]
[348220136,1736398243082,-500.0,9.898e-05,2]
[348220137,1736398243092,-500.0,9.898e-05,2]
[348220138,1736398243104,-500.0,9.898e-05,2]
[348220140,1736398243113,-1291.41,9.898e-05,2]
[348220142,1736398243123,-500.0,9.898e-05,2]
[348220143,1736398243132,-400.0,9.898e-05,2]
[348220145,1736398243142,-500.0,9.898e-05,2]
[348220147,1736398243151,-500.0,9.898e-05,2]
[348220149,1736398243162,-500.0,9.898e-05,2]
[348220150,1736398243171,-500.0,9.898e-05,2]
[348220151,1736398243180,-500.0,9.898e-05,2]
[348220152,1736398243190,-500.0,9.898e-05,2]
[348220153,1736398243199,-500.0,9.898e-05,2]
[348220154,1736398243208,-500.0,9.898e-05,2]
[348220155,1736398243217,-500.0,9.898e-05,2]
[348220156,1736398243227,-500.0,9.898e-05,2]
[348220157,1736398243236,-500.0,9.898e-05,2]
[348220158,1736398243245,-500.0,9.898e-05,2]
[348220159,1736398243255,-500.0,9.898e-05,2]
[348220160,1736398243264,-500.0,9.898e-05,2]
[348220161,1736398243273,-500.0,9.898e-05,2]
[348220162,1736398243283,-500.0,9.898e-05,2]
[348220163,1736398243293,-500.0,9.898e-05,2]
[348220164,1736398243303,-707.4,9.898e-05,2]
[348220165,1736398243313,-834.83,9.898e-05,2]
[348220166,1736398243323,-500.0,9.898e-05,2]
[348220167,1736398243333,-500.0,9.898e-05,2]
[348220168,1736398243343,-500.0,9.898e-05,2]
[348220169,1736398243352,-500.0,9.898e-05,2]
[348220170,1736398243362,-681.29,9.898e-05,2]
[348220171,1736398243372,-540.68270018,9.898e-05,2]
[348220172,1736398243381,-500.0,9.898e-05,2]
[348220173,1736398243391,-500.0,9.898e-05,2]
[348220174,1736398243401,-500.0,9.898e-05,2]
[348220175,1736398243411,-500.0,9.898e-05,2]
[348220176,1736398243421,-500.0,9.898e-05,2]
[348220177,1736398243431,-500.0,9.898e-05,2]
[348220178,1736398243440,-500.0,9.898e-05,2]
[348220179,1736398243451,-498.56423074,9.898e-05,2]
[348220180,1736398243461,-500.0,9.898e-05,2]
[348220181,1736398243471,-500.0,9.898e-05,2]
[348220182,1736398243481,-500.0,9.898e-05,2]
[348220183,1736398243491,-500.0,9.898e-05,2]
[348220184,1736398243504,-500.0,9.898e-05,2]
[348220185,1736398243514,-500.0,9.898e-05,2]
[348220186,1736398243523,-500.0,9.898e-05,2]
[348220187,1736398243532,-500.0,9.898e-05,2]
[348220188,1736398243542,-1775.27,9.898e-05,2]
[348220189,1736398243552,-500.0,9.898e-05,2]
[348220190,1736398243563,-500.0,9.898e-05,2]
[348220191,1736398243572,-500.0,9.898e-05,2]
[348220192,1736398243582,-500.0,9.898e-05,2]
[348220193,1736398243592,-500.0,9.898e-05,2]
[348220194,1736398243603,-500.0,9.898e-05,2]
[348220195,1736398243613,-500.0,9.898e-05,2]
[348220196,1736398243623,-500.0,9.898e-05,2]
[348220197,1736398243633,-500.0,9.898e-05,2]
[348220198,1736398243643,-500.0,9.898e-05,2]
[348220199,1736398243652,-500.0,9.898e-05,2]
[348220200,1736398243661,-500.0,9.898e-05,2]
[348220201,1736398243671,-500.0,9.898e-05,2]
[348220202,1736398243680,-500.0,9.898e-05,2]
[348220203,1736398243690,-500.53695189,9.898e-05,2]
[348220204,1736398243699,-500.0,9.898e-05,2]
[348220205,1736398243709,-500.0,9.898e-05,2]
[348220206,1736398243718,-500.0,9.898e-05,2]
[348220207,1736398243727,-500.0,9.898e-05,2]
[348220208,1736398243737,-500.0,9.898e-05,2]
[348220209,1736398243747,-500.56969887,9.898e-05,2]
[348220210,1736398243757,-500.0,9.898e-05,2]
[348220211,1736398243766,-500.0,9.898e-05,2]
[348220212,1736398243776,-500.0,9.898e-05,2]
[348220213,1736398243786,-500.0,9.898e-05,2]
[348220214,1736398243796,-500.0,9.898e-05,2]
[348220215,1736398243885,-500.0,9.898e-05,2]
[348220216,1736398243895,-500.0,9.898e-05,2]
[348220217,1736398243904,-500.0,9.898e-05,2]
[348220218,1736398243914,-500.0,9.898e-05,2]
[348220219,1736398243924,-500.0,9.898e-05,2]
[348220220,1736398243933,-500.0,9.898e-05,2]
[348220221,1736398243943,-500.0,9.898e-05,2]
[348220222,1736398243952,-500.0,9.898e-05,2]
[348220223,1736398243962,-500.0,9.898e-05,2]
[348220224,1736398243972,-500.0,9.898e-05,2]
[348220225,1736398243980,-500.0,9.898e-05,2]
[348220226,1736398243990,-500.0,9.898e-05,2]
[348220227,1736398243999,-536.88,9.898e-05,2]
[348220228,1736398244009,-500.0,9.898e-05,2]
[348220229,1736398244018,-500.0,9.898e-05,2]
[348220230,1736398244027,-500.0,9.898e-05,2]
[348220231,1736398244037,-500.0,9.898e-05,2]
[348220232,1736398244049,-500.0,9.898e-05,2]
[348220233,1736398244059,-500.0,9.898e-05,2]
[348220234,1736398244068,-498.36,9.898e-05,2]
[348220235,1736398244077,-500.0,9.898e-05,2]
[348220236,1736398244087,-500.0,9.898e-05,2]
[348220237,1736398244100,-500.0,9.898e-05,2]
[348220238,1736398244110,-500.0,9.898e-05,2]
[348220239,1736398244119,-500.0,9.898e-05,2]
[348220240,1736398244129,-500.0,9.898e-05,2]
[348220241,1736398244138,-500.0,9.898e-05,2]
[348220242,1736398244147,-500.0,9.898e-05,2]
[348220243,1736398244156,-974.03,9.898e-05,2]
[348220244,1736398244166,-500.0,9.898e-05,2]
[348220245,1736398244179,-500.0,9.898e-05,2]
[348220246,1736398244188,-500.0,9.898e-05,2]
[348220247,1736398244197,-500.0,9.898e-05,2]
[348220248,1736398244206,-500.0,9.898e-05,2]
[348220249,1736398244216,-500.0,9.898e-05,2]
[348220250,1736398244225,-500.0,9.898e-05,2]
[348220251,1736398244234,-500.0,9.898e-05,2]
[348220252,1736398244243,-500.0,9.898e-05,2]
[348220253,1736398244251,-500.0,9.898e-05,2]
[348220254,1736398244260,-500.0,9.898e-05,2]
[348220255,1736398244270,-500.0,9.898e-05,2]
[348220256,1736398244279,-500.0,9.898e-05,2]
[348220257,1736398244288,-500.0,9.898e-05,2]
[348220258,1736398244297,-500.0,9.898e-05,2]
[348220259,1736398244306,-500.0,9.898e-05,2]
[348220260,1736398244316,-500.0,9.898e-05,2]
[348220261,1736398244325,-500.0,9.898e-05,2]
[348220262,1736398244335,-500.0,9.898e-05,2]
[348220263,1736398244347,-500.0,9.898e-05,2]
[348220264,1736398244356,-769.74,9.898e-05,2]
[348220265,1736398244366,-500.0,9.898e-05,2]
[348220266,1736398244375,-500.0,9.898e-05,2]
[348220267,1736398244386,-500.0,9.898e-05,2]
[348220268,1736398244396,-500.0,9.898e-05,2]
[348220269,1736398244405,-500.0,9.898e-05,2]
[348220270,1736398244415,-500.0,9.898e-05,2]
[348220271,1736398244424,-501.03602481,9.898e-05,2]
[348220272,1736398244434,-500.0,9.898e-05,2]
[348220273,1736398244443,-991.83,9.898e-05,2]
[348220274,1736398244453,-500.0,9.898e-05,2]
[348220275,1736398244462,-500.0,9.898e-05,2]
[348220276,1736398244471,-500.0,9.898e-05,2]
[348220277,1736398244481,-500.0,9.898e-05,2]
[348220278,1736398244490,-500.0,9.898e-05,2]
[348220279,1736398244501,-500.0,9.898e-05,2]
[348220280,1736398244511,-504.15227442,9.899e-05,2]
[348220281,1736398244521,-500.0,9.899e-05,2]
[348220282,1736398244530,-500.0,9.899e-05,2]
[348220283,1736398244539,-500.0,9.899e-05,2]
[348220284,1736398244549,-500.0,9.899e-05,2]
[348220285,1736398244560,-500.0,9.899e-05,2]
[348220286,1736398244571,-500.0,9.899e-05,2]
[348220287,1736398244581,-500.0,9.899e-05,2]
[348220288,1736398244590,-500.0,9.899e-05,2]
[348220289,1736398244602,-614.47,9.899e-05,2]
[348220290,1736398244611,-500.0,9.899e-05,2]
[348220291,1736398244620,-514.76928127,9.899e-05,2]
[348220292,1736398244630,-500.0,9.899e-05,2]
[348220293,1736398244639,-500.0,9.899e-05,2]
[348220294,1736398244649,-413.16691723,9.899e-05,2]
[348220295,1736398244659,-500.0,9.899e-05,2]
[348220296,1736398244668,-225.28187189,9.899e-05,2]
[348220297,1736398244677,-500.0,9.899e-05,2]